bitfinex/quotes_BTCUSD_20250814
["timestamp","ask_amount","ask_price","bid_price","bid_amount"]
[1755178990449,0.25237444,117910.0,117900.0,0.33319528]
[1755178990651,0.25337444,117910.0,117900.0,0.33319528]
[1755178990997,0.001,117910.0,117900.0,0.77646755]
[1755178991141,0.2659,117920.0,117910.0,0.16962089]
[1755178991334,0.2659,117920.0,117910.0,0.27289316]
[1755178991535,0.2659,117920.0,117910.0,0.28480262]
[1755178991738,0.4429,117930.0,117920.0,0.16960651]
[1755178991937,0.4429,117930.0,117910.0,0.09773271]
[1755178991938,0.09629349,117920.0,117910.0,0.09773271]
[1755178992208,0.015,117940.0,117920.0,0.16960651]
[1755178992412,0.03048191,117940.0,117930.0,0.17278199]
[1755178992616,0.02968191,117940.0,117930.0,0.16959213]
[1755178992758,0.22125966,117940.0,117930.0,0.16959213]
[1755178992958,0.05168191,117940.0,117930.0,0.16963912]
[1755178993161,0.02968191,117940.0,117930.0,0.33315912]
[1755178993367,0.22125966,117940.0,117930.0,0.33315912]
[1755178993582,0.22436966,117940.0,117930.0,0.16963912]
[1755178993791,0.22436966,117940.0,117930.0,0.35060814]
[1755178993992,0.05479191,117940.0,117930.0,0.35060814]
[1755178994192,0.02968191,117940.0,117930.0,0.35060814]
[1755178994656,0.02968191,117940.0,117930.0,0.18708814]
[1755178994867,0.05168191,117940.0,117930.0,0.35056814]
[1755178995084,0.03068191,117940.0,117930.0,0.35056814]
[1755178995389,0.05790179,117940.0,117930.0,0.18708814]
[1755178995608,0.22647954,117940.0,117930.0,0.18708814]
[1755178995844,0.22636966,117940.0,117930.0,0.18708814]
[1755178996082,0.05879191,117940.0,117930.0,0.18708814]
[1755178996718,0.05568191,117940.0,117930.0,0.18708814]
[1755178996933,0.05488191,117940.0,117930.0,0.18708814]
[1755178997148,0.05288191,117940.0,117930.0,0.18708814]
[1755178997369,0.22556966,117940.0,117930.0,0.18708814]
[1755178997580,0.05599191,117940.0,117930.0,0.18708814]
[1755178997734,0.05288191,117940.0,117930.0,0.18708814]
[1755178997943,0.22045966,117940.0,117930.0,0.18708814]
[1755178998125,0.22656966,117940.0,117930.0,0.01749601]
[1755178998956,0.71704646,117940.0,117930.0,4.699e-05]
[1755178999155,0.71404646,117940.0,117930.0,4.699e-05]
[1755178999592,0.71604646,117940.0,117930.0,4.699e-05]
[1755178999792,0.71404646,117940.0,117930.0,4.699e-05]
[1755178999993,0.71604646,117940.0,117930.0,0.01749601]
[1755179000195,0.71904646,117940.0,117930.0,0.01749601]
[1755179000424,0.71904646,117940.0,117930.0,4.699e-05]
[1755179000757,0.65129291,117940.0,117930.0,4.699e-05]
[1755179000962,0.64929291,117940.0,117930.0,4.699e-05]
[1755179001372,0.65229291,117940.0,117930.0,4.699e-05]
[1755179002842,0.20582089,117910.0,117900.0,0.3398369]
[1755179003042,0.022,117920.0,117910.0,0.16962089]
[1755179003255,0.346,117940.0,117930.0,0.01744902]
[1755179003447,0.006,117940.0,117930.0,0.19023091]
[1755179003626,0.35181657,117970.0,117950.0,0.16955383]
[1755179003825,0.0103993,117970.0,117960.0,0.18911737]
[1755179004155,0.0103993,117970.0,117960.0,0.18699801]
[1755179004504,0.20193392,117970.0,117960.0,0.20570147]
[1755179004722,0.20504392,117970.0,117960.0,0.01744902]
[1755179004994,0.20552233,117970.0,117960.0,0.01744902]
[1755179005369,0.20552233,117970.0,117960.0,0.18699801]
[1755179005580,0.20741233,117970.0,117960.0,0.18699801]
[1755179005829,0.03287771,117970.0,117960.0,0.18699801]
[1755179006042,0.00787771,117970.0,117960.0,0.18699801]
[1755179006263,0.00787771,117970.0,117960.0,0.35337801]
[1755179006462,0.00787771,117970.0,117960.0,0.43610126]
[1755179007024,0.02987771,117970.0,117960.0,0.18699801]
[1755179007429,0.20252233,117970.0,117960.0,0.01744902]
[1755179007698,0.02987771,117970.0,117960.0,0.18699801]
[1755179007970,0.00787771,117970.0,117960.0,0.29162172]
[1755179008185,0.0002,117980.0,117970.0,0.18698364]
[1755179008432,0.0002,117980.0,117970.0,0.79484735]
[1755179008797,0.0002,118000.0,117990.0,0.18695491]
[1755179008989,0.015777,118000.0,117990.0,0.45167862]
[1755179009293,0.015777,118000.0,117990.0,0.43287816]
[1755179009513,0.015777,118000.0,117990.0,0.18703266]
[1755179009751,0.18526852,118000.0,117990.0,0.01744902]
[1755179009998,0.20726852,118000.0,117990.0,0.01744902]
[1755179010222,0.20726852,118000.0,117990.0,0.19314198]
[1755179010449,0.20726852,118000.0,117990.0,0.18995491]
[1755179010658,0.18526852,118000.0,117990.0,0.18995491]
[1755179010893,0.015777,118000.0,117990.0,0.18995491]
[1755179011180,0.015777,118000.0,117990.0,0.27577816]
[1755179011395,0.015777,118000.0,117990.0,0.20848917]
[1755179011573,0.016777,118000.0,117990.0,0.18995491]
[1755179011777,0.18626852,118000.0,117990.0,0.18995491]
[1755179011931,0.016777,118000.0,117990.0,0.35307491]
[1755179012150,0.27913207,118000.0,117990.0,0.003]
[1755179012364,0.16953462,117970.0,117960.0,0.16963554]
[1755179012563,0.015577,117970.0,117960.0,0.16963554]
[1755179012739,0.18511162,117970.0,117960.0,0.16963554]
[1755179013286,0.18511162,117970.0,117960.0,8.655e-05]
[1755179013450,0.015577,117970.0,117960.0,0.16963554]
[1755179013707,0.015577,117970.0,117960.0,0.18708456]
[1755179013919,0.015577,117970.0,117960.0,0.27290781]
[1755179014120,0.022,117980.0,117970.0,0.18698364]
[1755179014325,0.037577,117980.0,117970.0,0.18698364]
[1755179014544,0.037577,117980.0,117970.0,0.2055179]
[1755179014749,0.015577,117980.0,117970.0,0.44515402]
[1755179015102,0.015577,117990.0,117980.0,0.18696927]
[1755179015229,0.015577,117990.0,117980.0,0.61279252]
[1755179015429,0.015777,118000.0,117990.0,0.18695491]
[1755179015632,0.015777,118000.0,117990.0,0.44344074]
[1755179015832,0.015777,118000.0,117990.0,0.45106332]
[1755179016253,0.0002,118000.0,117990.0,0.89223332]
[1755179016670,0.015577,118030.0,118020.0,0.18691182]
[1755179016866,0.015577,118030.0,118020.0,0.27725765]
[1755179017081,0.015577,118030.0,118020.0,0.28488023]
[1755179017289,0.015577,118030.0,118020.0,0.26963507]
[1755179017702,0.015577,118030.0,118020.0,0.28488023]
[1755179017981,0.015577,118030.0,118020.0,0.28798678]
[1755179018143,0.015577,118030.0,118020.0,0.39158678]
[1755179018978,0.015577,118030.0,118020.0,0.37634162]
[1755179019180,0.015577,118030.0,118020.0,0.27172162]
[1755179019324,0.015577,118030.0,118020.0,0.43768162]
[1755179019927,0.015577,118030.0,118020.0,0.77768162]
[1755179020131,0.015577,118030.0,118020.0,0.61472162]
[1755179020320,0.21006544,118030.0,118020.0,0.00508655]
[1755179020687,0.29278869,118030.0,118020.0,0.00308655]
[1755179020815,0.29278869,118030.0,118020.0,0.00408655]
[1755179021212,0.29278869,118030.0,118020.0,0.00108655]
[1755179021430,0.29278869,118030.0,118020.0,8.655e-05]
[1755179021677,0.29278869,118030.0,118020.0,0.00208655]
[1755179021885,0.29378869,118030.0,118020.0,8.655e-05]
[1755179022349,0.63278869,118030.0,118020.0,8.655e-05]
[1755179022678,0.63478869,118030.0,118020.0,8.655e-05]
[1755179022863,0.63678869,118030.0,118020.0,8.655e-05]
[1755179023262,0.63478869,118030.0,118020.0,8.655e-05]
[1755179023463,0.64254701,118030.0,118020.0,8.655e-05]
[1755179024409,0.79762869,118030.0,118020.0,8.655e-05]
[1755179024603,0.8053875,118030.0,118020.0,8.655e-05]
[1755179025042,0.8073875,118030.0,118020.0,8.655e-05]
[1755179025251,0.79962869,118030.0,118020.0,8.655e-05]
[1755179025642,1.65452226,118030.0,118020.0,1e-08]
[1755179025863,1.67240292,118030.0,118020.0,1e-08]
[1755179026092,0.82527089,118030.0,118020.0,1e-08]
[1755179026307,1.67240292,118030.0,118020.0,1e-08]
[1755179026736,1.66464138,118030.0,118020.0,1e-08]
[1755179026945,1.64676072,118030.0,118020.0,1e-08]
[1755179027607,1.67176072,118030.0,118020.0,1e-08]
[1755179027813,0.95230869,118030.0,118020.0,1e-08]
[1755179028092,1.82388974,118030.0,118020.0,1e-08]
[1755179028467,1.79588974,118030.0,118020.0,1e-08]
[1755179028676,1.82085387,118030.0,118020.0,1e-08]
[1755179028881,1.82485387,118030.0,118020.0,1e-08]
[1755179029098,1.91385387,118030.0,118020.0,1e-08]
[1755179029305,1.91385387,118030.0,117950.0,0.06775355]
[1755179029306,0.022,117960.0,117950.0,0.06775355]
[1755179029467,0.78003224,117960.0,117950.0,0.06823196]
[1755179029937,0.77503224,117960.0,117950.0,0.06823196]
[1755179030305,0.61231224,117960.0,117950.0,0.06823196]
[1755179030612,0.77499224,117960.0,117950.0,0.00047841]
[1755179030988,0.77499224,117960.0,117950.0,1e-08]
[1755179031731,0.79863782,117960.0,117950.0,1e-08]
[1755179032134,0.80063782,117960.0,117950.0,1e-08]
[1755179032303,0.63491782,117960.0,117950.0,1e-08]
[1755179032555,0.80059782,117960.0,117950.0,1e-08]
[1755179034072,0.80259782,117960.0,117950.0,1e-08]
[1755179034507,0.79859782,117960.0,117950.0,1e-08]
[1755179034719,0.79551782,117960.0,117950.0,1e-08]
[1755179034889,0.63391782,117960.0,117950.0,1e-08]
[1755179035103,0.79651782,117960.0,117950.0,1e-08]
[1755179035311,0.77951782,117960.0,117950.0,1e-08]
[1755179035485,0.10072325,117960.0,117950.0,0.07801689]
[1755179035687,0.1636,117960.0,117950.0,0.09758545]
[1755179035968,0.35014899,117960.0,117950.0,0.09848591]
[1755179036403,0.33314899,117960.0,117950.0,0.09848591]
[1755179036578,0.1636,117960.0,117950.0,0.09848591]
[1755179036813,0.001,117960.0,117950.0,0.1833287]
[1755179037028,0.001,117960.0,117950.0,0.18120916]
[1755179037231,0.001,117960.0,117940.0,1.01840728]
[1755179037232,0.18754899,117960.0,117940.0,1.01840728]
[1755179037442,0.18754899,117960.0,117940.0,1.01840791]
[1755179037443,0.16956337,117950.0,117940.0,1.01840791]
[1755179037684,0.16956337,117950.0,117940.0,0.16957775]
[1755179037685,0.18656337,117950.0,117940.0,0.16957775]
[1755179038090,0.017,117950.0,117940.0,0.16957775]
[1755179038302,0.18656337,117950.0,117930.0,0.18109132]
[1755179038514,0.77184662,117950.0,117940.0,0.003]
[1755179038726,0.77488662,117950.0,117940.0,0.002]
[1755179039136,0.77488662,117950.0,117940.0,0.003]
[1755179039341,0.1866114,117920.0,117900.0,0.16963364]
[1755179039544,0.3490914,117920.0,117910.0,0.16962089]
[1755179039749,0.34908651,117920.0,117910.0,0.16962089]
[1755179039952,0.17948,117920.0,117910.0,0.16962089]
[1755179040165,0.34908651,117920.0,117910.0,0.16962089]
[1755179040386,0.72476,117940.0,117920.0,0.1870456]
[1755179040596,0.00304,117990.0,117970.0,0.16953462]
[1755179040801,0.017,118000.0,117990.0,0.16950589]
[1755179041013,0.43740391,118020.0,118010.0,0.16947716]
[1755179041014,0.017,118020.0,118010.0,0.16947716]
[1755179041218,0.1864628,118020.0,118010.0,0.16947716]
[1755179041420,0.1864628,118020.0,117990.0,1.02135605]
[1755179041421,0.16947716,118010.0,117990.0,1.02135605]
[1755179041630,0.017,118020.0,118010.0,0.16947716]
[1755179041842,7e-05,118050.0,118040.0,0.16943409]
[1755179042044,7e-05,118050.0,118040.0,0.17245409]
[1755179042045,0.07838359,118050.0,118040.0,0.17245409]
[1755179042257,0.00047904,118050.0,118040.0,0.16943409]
[1755179042677,0.00047904,118050.0,118040.0,0.18688311]
[1755179044142,0.00147904,118050.0,118040.0,0.18688311]
[1755179044568,0.00347904,118050.0,118040.0,0.18688311]
[1755179044959,0.00347904,118050.0,118040.0,0.27262636]
[1755179045217,0.00247904,118050.0,118040.0,0.27262636]
[1755179045426,0.00047904,118050.0,118040.0,0.18688311]
[1755179045655,0.16989877,118050.0,118040.0,0.18688311]
[1755179045880,0.01847904,118050.0,118040.0,0.18688311]
[1755179046327,0.00147904,118050.0,118040.0,0.18990311]
[1755179047000,0.18789877,118050.0,118040.0,0.16943409]
[1755179047218,0.18120409,118040.0,118030.0,0.17792086]
[1755179047634,0.017,118020.0,118010.0,0.34019101]
[1755179047835,0.17924,118030.0,118010.0,0.17795101]
[1755179048057,0.28233904,118050.0,118040.0,0.16943409]
[1755179048267,0.34764267,118050.0,118040.0,0.16943409]
[1755179048471,0.16943409,118040.0,118020.0,0.19538496]
[1755179048693,0.18644844,118030.0,118020.0,0.1694628]
[1755179048910,0.017,118030.0,118020.0,0.1694628]
[1755179049140,0.017,118020.0,118010.0,0.17795101]
[1755179049355,0.003,118030.0,118020.0,0.18691182]
[1755179049569,0.003,118030.0,118010.0,0.18093101]
[1755179049773,0.017,118020.0,118010.0,0.01744902]
[1755179049985,0.1864628,118020.0,118010.0,0.01744902]
[1755179050244,0.16947716,118010.0,118000.0,0.16949152]
[1755179050485,0.017,118020.0,118010.0,0.18692618]
[1755179050661,0.018,118030.0,118020.0,0.18691182]
[1755179050862,0.017,118030.0,118020.0,0.18691182]
[1755179051020,0.18644844,118030.0,118020.0,0.18691182]
[1755179051458,0.18692719,118030.0,118020.0,0.01744902]
[1755179051652,0.18692719,118030.0,118000.0,0.26068934]
[1755179051653,0.16947716,118010.0,118000.0,0.27813836]
[1755179051877,0.16947716,118010.0,117990.0,0.58865422]
[1755179052044,0.18647028,118020.0,118000.0,0.16949152]
[1755179052239,0.18647028,118020.0,118000.0,0.18694054]
[1755179052446,0.16947716,118010.0,118000.0,0.18694054]
[1755179052647,0.18647028,118020.0,118000.0,0.18694054]
[1755179052875,0.18647028,118020.0,118010.0,0.16947716]
[1755179053249,0.18647028,118020.0,118000.0,0.18694054]
[1755179053456,0.18647028,118020.0,118010.0,0.16947716]
[1755179053653,0.18647028,118020.0,118000.0,0.18694054]
[1755179053861,0.18647028,118020.0,118010.0,0.17159562]
[1755179054066,0.18647028,118020.0,118010.0,0.16947716]
[1755179054261,0.16947716,118010.0,118000.0,0.01744902]
[1755179054468,0.17796609,118000.0,117970.0,0.17242857]
[1755179054666,0.17796609,118000.0,117970.0,0.41719182]
[1755179054667,0.16950589,117990.0,117970.0,0.41719182]
[1755179055091,0.16952025,117980.0,117970.0,0.41727787]
[1755179055317,0.16950589,117990.0,117980.0,0.18696927]
[1755179055525,0.18649152,118000.0,117980.0,0.18696927]
[1755179055731,0.33149152,118000.0,117990.0,0.17162471]
[1755179055939,0.16950589,117990.0,117980.0,0.01744902]
[1755179056372,0.34897027,118000.0,117980.0,0.19015679]
[1755179056581,0.16950589,117990.0,117980.0,0.18696927]
[1755179057421,0.16950589,117990.0,117980.0,0.18796927]
[1755179057849,0.16950589,117990.0,117980.0,0.01844902]
[1755179058244,0.16907023,117990.0,117980.0,0.01944902]
[1755179058447,0.16907023,117990.0,117980.0,0.18896927]
[1755179058663,0.16907023,117990.0,117980.0,0.18796927]
[1755179059039,0.16907023,117990.0,117980.0,0.18896927]
[1755179059239,0.34889027,118000.0,117980.0,0.18896927]
[1755179059440,0.07471793,117990.0,117980.0,0.5972235]
[1755179059575,0.24422382,117990.0,117980.0,0.5972235]
[1755179059779,0.07471793,117990.0,117980.0,0.5972235]
[1755179059989,0.24422382,117990.0,117980.0,0.5972235]
[1755179060191,0.24422382,117990.0,117980.0,0.5962235]
[1755179060399,0.24422382,117990.0,117980.0,0.001]
[1755179060612,0.07471793,117990.0,117980.0,0.17052025]
[1755179060817,0.07471793,117990.0,117980.0,0.17250025]
[1755179061018,0.07471793,117990.0,117980.0,0.17350025]
[1755179061241,0.07471793,117990.0,117980.0,0.17450025]
[1755179061440,0.24422382,117990.0,117980.0,0.19094927]
[1755179061646,0.24422382,117990.0,117980.0,0.01849522]
[1755179061900,0.24422382,117990.0,117980.0,0.01949522]
[1755179062410,0.07471793,117990.0,117980.0,0.18901547]
[1755179062608,0.07471793,117990.0,117980.0,0.35085547]
[1755179062767,0.07471793,117990.0,117980.0,0.35383547]
[1755179063003,0.07471793,117990.0,117980.0,0.43655872]
[1755179063225,0.07471793,117990.0,117980.0,0.43357872]
[1755179063623,0.07471793,117990.0,117980.0,0.43655872]
[1755179063899,0.24422382,117990.0,117980.0,0.43655872]
[1755179064066,0.07471793,117990.0,117980.0,0.43357872]
[1755179064309,0.07079703,117990.0,117980.0,0.43357872]
[1755179064671,0.07079703,117990.0,117980.0,1.6241907]
[1755179065457,0.07079703,117990.0,117980.0,1.6496097]
[1755179066236,0.51369703,117990.0,117980.0,1.55318902]
[1755179066447,0.51369703,117990.0,117980.0,1.37001227]
[1755179067761,0.33669703,117990.0,117980.0,0.78552902]
[1755179068029,0.33669703,117990.0,117980.0,1.20429123]
[1755179068264,0.33669703,117990.0,117980.0,0.37410827]
[1755179068482,0.33669703,117990.0,117980.0,1.22174025]
[1755179068920,0.33669703,117990.0,117980.0,1.3044635]
[1755179069615,0.33669703,117990.0,117980.0,1.3043835]
[1755179070610,0.07079703,117990.0,117980.0,1.3043835]
[1755179071031,0.24030292,117990.0,117980.0,0.87305098]
[1755179071246,0.26049292,117990.0,117950.0,1.02559465]
[1755179071453,0.017,117970.0,117960.0,0.16954853]
[1755179071688,0.017,117970.0,117960.0,0.19497353]
[1755179071894,0.18972462,117970.0,117960.0,0.025425]
[1755179072125,0.16954899,117960.0,117950.0,0.1616]
[1755179072331,0.17273899,117960.0,117950.0,0.16956337]
[1755179072541,0.00319,117960.0,117950.0,0.19799237]
[1755179072749,0.18653462,117970.0,117960.0,0.16954899]
[1755179072961,0.18653462,117970.0,117960.0,0.17154899]
[1755179073160,0.18653462,117970.0,117950.0,0.53799237]
[1755179073396,0.16954899,117960.0,117950.0,0.53799237]
[1755179073612,0.17273899,117960.0,117950.0,0.029429]
[1755179073817,0.43398224,117960.0,117950.0,0.025429]
[1755179074088,0.43398224,117960.0,117950.0,0.027429]
[1755179074318,0.43398224,117960.0,117950.0,0.002]
[1755179074750,0.43398224,117960.0,117940.0,0.16957608]
[1755179074958,0.35125899,117960.0,117950.0,0.17056337]
[1755179075171,0.18171,117960.0,117950.0,0.17056337]
[1755179075390,0.35125899,117960.0,117950.0,0.001]
[1755179075579,0.35125899,117960.0,117950.0,0.16956337]
[1755179075806,0.017,117960.0,117950.0,1.01719535]
[1755179076170,0.35168357,117970.0,117950.0,1.01719535]
[1755179076417,0.18754899,117960.0,117940.0,0.33957496]
[1755179076753,0.19060899,117960.0,117950.0,0.16956337]
[1755179077267,0.18960899,117960.0,117940.0,0.43974723]
[1755179077469,0.02006,117960.0,117950.0,0.16956337]
[1755179077756,0.17991846,117970.0,117960.0,0.16954899]
[1755179077962,0.00147846,117970.0,117960.0,0.16954899]
[1755179078226,0.00147846,117970.0,117960.0,0.34839801]
[1755179078430,0.00147846,117970.0,117960.0,0.77222126]
[1755179078643,0.07079703,117990.0,117980.0,0.16952025]
[1755179078848,0.1779712,118050.0,117980.0,0.16952025]
[1755179078849,0.01867008,118040.0,118030.0,0.16944844]
[1755179079049,0.00306,118040.0,118030.0,0.33084844]
[1755179079383,0.00306,118040.0,118030.0,0.16944844]
[1755179079583,0.3794583,118060.0,118050.0,0.16941973]
[1755179079696,0.0188664,118060.0,118050.0,0.16941973]
[1755179079909,0.0188664,118060.0,118050.0,0.18904113]
[1755179079910,0.00326,118060.0,118050.0,0.18904113]
[1755179080150,0.07671753,118050.0,118040.0,0.34824311]
[1755179080349,0.07671753,118050.0,118040.0,0.43101328]
[1755179080554,0.07671753,118050.0,118040.0,0.43147095]
[1755179080759,0.34261753,118050.0,118040.0,0.43101328]
[1755179081019,0.34261753,118050.0,118040.0,0.77302862]
[1755179081358,0.07671753,118050.0,118040.0,0.77302862]
[1755179081557,0.0022,118060.0,118050.0,0.50941973]
[1755179081776,0.00515,118070.0,118060.0,0.5268544]
[1755179081987,0.00515,118070.0,118060.0,0.77287297]
[1755179082201,0.00515,118070.0,118060.0,0.77177297]
[1755179082394,0.00515,118070.0,118060.0,0.77085765]
[1755179083167,0.00515,118070.0,118060.0,0.77285765]
[1755179083375,0.00515,118070.0,118060.0,0.77377297]
[1755179083558,0.00515,118070.0,118060.0,0.77085765]
[1755179083711,0.00515,118070.0,118060.0,0.17040538]
[1755179083712,0.00821,118070.0,118060.0,0.17040538]
[1755179083921,0.00515,118070.0,118060.0,0.17040538]
[1755179084128,0.02521,118070.0,118050.0,0.16941973]
[1755179084317,0.00821,118070.0,118060.0,0.16940538]
[1755179084506,0.00515,118070.0,118060.0,0.16940538]
[1755179084708,0.00515,118070.0,118060.0,0.3480144]
[1755179084926,0.00515,118070.0,118060.0,0.77183765]
[1755179085340,0.00515,118070.0,118060.0,0.78183765]
[1755179085537,0.03355695,118090.0,118080.0,0.52682571]
[1755179085776,0.0179943,118090.0,118080.0,0.77070896]
[1755179086802,0.01847342,118090.0,118080.0,0.77070896]
[1755179087015,0.01556265,118110.0,118080.0,0.77370896]
[1755179087226,0.01556265,118110.0,118100.0,0.52679703]
[1755179087438,0.06775355,118140.0,118130.0,0.169305]
[1755179087647,0.0002,118150.0,118140.0,0.16929067]
[1755179088262,0.02026,118160.0,118150.0,0.16927634]
[1755179088485,0.02026,118160.0,118150.0,0.33076626]
[1755179088708,0.0002,118160.0,118150.0,0.43098545]
[1755179088887,0.00326,118160.0,118150.0,0.3482622]
[1755179089359,0.00626,118160.0,118150.0,0.17853594]
[1755179089584,0.02326,118160.0,118150.0,0.16100692]
[1755179089819,0.19252201,118160.0,118150.0,0.16100692]
[1755179090026,0.19252201,118160.0,118150.0,0.33028326]
[1755179090232,0.19452201,118160.0,118150.0,4.692e-05]
[1755179090440,0.19452201,118160.0,118150.0,0.16100692]
[1755179090646,0.19452201,118160.0,118150.0,4.692e-05]
[1755179092045,0.0222,118160.0,118150.0,0.16932326]
[1755179092224,0.0052,118160.0,118150.0,0.16932326]
[1755179092430,0.0052,118160.0,118150.0,0.16998196]
[1755179093053,0.0052,118160.0,118150.0,0.27015423]
[1755179094849,0.0052,118160.0,118150.0,0.28960491]
[1755179095050,0.0052,118160.0,118150.0,0.62960491]
[1755179095255,0.0052,118160.0,118150.0,0.69845846]
[1755179095458,0.0002,118170.0,118160.0,0.16926201]
[1755179095658,0.0002,118170.0,118160.0,0.4318327]
[1755179096098,0.0002,118170.0,118160.0,0.2711527]
[1755179096430,0.0002,118170.0,118160.0,0.34739103]
[1755179097122,0.16134003,118190.0,118170.0,0.16924769]
[1755179097320,0.16134003,118190.0,118180.0,0.16923337]
[1755179097561,0.017,118190.0,118180.0,0.16923337]
[1755179097761,0.17766529,118200.0,118180.0,0.16923337]
[1755179098069,0.017,118190.0,118180.0,0.33018818]
[1755179098270,0.18621905,118190.0,118180.0,0.33054299]
[1755179098662,0.017,118190.0,118180.0,0.33054299]
[1755179098896,0.46071628,118200.0,118180.0,0.33054299]
[1755179099015,0.017,118200.0,118190.0,0.16921905]
[1755179099221,0.18926473,118200.0,118190.0,0.16921905]
[1755179099804,0.02206,118200.0,118190.0,0.16992867]
[1755179099976,0.002,118200.0,118190.0,0.16992867]
[1755179100208,0.019,118200.0,118190.0,0.16997559]
[1755179100424,0.019,118200.0,118190.0,4.692e-05]
[1755179100425,0.18926473,118200.0,118190.0,4.692e-05]
[1755179100641,1.03840798,118200.0,118190.0,4.692e-05]
[1755179100847,1.02340798,118200.0,118190.0,4.692e-05]
[1755179101049,1.04040798,118200.0,118190.0,4.692e-05]
[1755179101463,1.03840798,118200.0,118190.0,4.692e-05]
[1755179102083,1.14620798,118200.0,118190.0,4.692e-05]
[1755179102286,0.86088798,118200.0,118190.0,4.692e-05]
[1755179102490,0.87788798,118200.0,118190.0,4.692e-05]
[1755179102900,0.86288798,118200.0,118190.0,4.692e-05]
[1755179103099,0.79716473,118200.0,118190.0,4.692e-05]
[1755179103230,0.45516473,118200.0,118190.0,4.692e-05]
[1755179103788,0.45816473,118200.0,118190.0,4.692e-05]
[1755179103986,0.45510473,118200.0,118190.0,0.16926597]
[1755179104210,0.2669,118200.0,118190.0,0.16926597]
[1755179104393,0.2659,118200.0,118190.0,0.16997939]
[1755179104739,0.2679,118200.0,118190.0,0.17308939]
[1755179104959,0.003,118200.0,118190.0,0.27326166]
[1755179105174,0.003,118200.0,118190.0,0.61326166]
[1755179105392,1e-08,118200.0,118190.0,0.61254824]
[1755179105608,0.16036,118250.0,118240.0,0.16914749]
[1755179105821,0.017,118240.0,118230.0,0.1691618]
[1755179106461,0.017,118240.0,118230.0,0.1945298]
[1755179106869,0.20460624,118250.0,118230.0,0.1945298]
[1755179107039,0.017,118240.0,118230.0,0.1945298]
[1755179107258,0.18614749,118240.0,118230.0,0.1945298]
[1755179107397,0.18614749,118240.0,118230.0,0.025368]
[1755179107620,0.18938749,118240.0,118230.0,0.025368]
[1755179107818,0.017,118210.0,118200.0,0.34691944]
[1755179108026,0.27215367,118210.0,118200.0,0.025375]
[1755179108231,0.61215367,118210.0,118200.0,0.025375]
[1755179108476,0.18623337,118180.0,118160.0,0.3378978]
[1755179108683,0.18624769,118170.0,118160.0,0.025383]
[1755179108966,0.18629982,118140.0,118120.0,0.23707252]
[1755179109172,0.017,118140.0,118130.0,0.169305]
[1755179109315,0.017,118150.0,118140.0,0.16929067]
[1755179109494,0.017,118150.0,118130.0,0.194695]
[1755179109495,0.16927634,118150.0,118130.0,0.194695]
[1755179109700,0.16929067,118140.0,118130.0,0.02539]
[1755179109907,0.34653067,118140.0,118130.0,0.02539]
[1755179110106,0.17724,118140.0,118130.0,0.169305]
[1755179110309,0.34653067,118140.0,118130.0,4.692e-05]
[1755179110501,0.34977067,118140.0,118130.0,4.692e-05]
[1755179110722,0.77249392,118140.0,118130.0,4.692e-05]
[1755179110930,0.78796067,118140.0,118130.0,4.692e-05]
[1755179111356,0.18633367,118110.0,118100.0,0.0397045]
[1755179111686,0.34653367,118110.0,118100.0,0.03984512]
[1755179111887,0.34653367,118110.0,118100.0,0.20919313]
[1755179111888,0.017,118110.0,118100.0,0.20919313]
[1755179112069,0.16933166,118120.0,118100.0,0.20919313]
[1755179112070,0.32949166,118120.0,118100.0,0.20919313]
[1755179112276,0.18633367,118110.0,118100.0,0.20843881]
[1755179112660,0.017,118110.0,118100.0,0.20843881]
[1755179112970,0.18633367,118110.0,118100.0,0.21690621]
[1755179113172,0.017,118110.0,118100.0,0.21690621]
[1755179113402,0.017,118120.0,118110.0,0.16933367]
[1755179113667,0.001,118140.0,118120.0,0.16930821]
[1755179113876,0.18729067,118140.0,118120.0,0.32946821]
[1755179114030,0.017,118120.0,118110.0,0.1693329]
[1755179114202,0.017,118130.0,118120.0,0.16931933]
[1755179114401,0.017,118120.0,118110.0,0.1693329]
[1755179114607,0.17033367,118110.0,118100.0,0.0390908]
[1755179114848,0.19057367,118110.0,118100.0,0.0390908]
[1755179115075,0.018,118110.0,118100.0,0.20843881]
[1755179115708,0.017,118110.0,118100.0,0.20843881]
[1755179115912,0.16012,118120.0,118110.0,0.16933367]
[1755179116166,0.16700539,118130.0,118120.0,0.16931933]
[1755179116376,0.00953078,118130.0,118120.0,0.16931933]
[1755179116583,0.017,118140.0,118130.0,0.169305]
[1755179116810,0.0187686,118150.0,118140.0,0.16929067]
[1755179116971,0.28386173,118150.0,118140.0,0.16929067]
[1755179117173,0.017,118140.0,118130.0,0.169305]
[1755179117559,0.03784242,118160.0,118150.0,0.16927634]
[1755179117560,0.16008,118160.0,118150.0,0.16927634]
[1755179117765,0.03518055,118160.0,118150.0,0.16927634]
[1755179117965,0.03253584,118160.0,118150.0,0.16941696]
[1755179118171,0.29040581,118160.0,118150.0,0.00014062]
[1755179118411,0.4478411,118160.0,118150.0,0.00014062]
[1755179118634,0.7878411,118160.0,118150.0,0.00014062]
[1755179118851,0.6107611,118160.0,118150.0,0.00014062]
[1755179119054,0.7878411,118160.0,118150.0,0.00014062]
[1755179119199,0.6277611,118160.0,118150.0,0.00014062]
[1755179119566,0.36183785,118160.0,118150.0,0.00014062]
[1755179119823,0.03253584,118160.0,118150.0,0.16941696]
[1755179120002,0.19257584,118160.0,118150.0,0.16941696]
[1755179120236,0.20179785,118160.0,118150.0,0.00014062]
[1755179120420,0.01553584,118160.0,118150.0,0.17251696]
[1755179120596,0.01553584,118160.0,118150.0,0.25524021]
[1755179120920,0.17254386,118200.0,118150.0,0.25524021]
[1755179120921,0.017,118180.0,118160.0,0.17771079]
[1755179121153,0.03255683,118180.0,118170.0,0.16923346]
[1755179121538,0.03255683,118180.0,118170.0,0.17233346]
[1755179121766,0.01555683,118180.0,118170.0,0.27250573]
[1755179122183,0.01555683,118180.0,118170.0,0.68025928]
[1755179122395,0.01555683,118180.0,118170.0,0.61250573]
[1755179122608,0.35462965,118200.0,118180.0,0.16922402]
[1755179122831,0.18621905,118190.0,118170.0,0.27786811]
[1755179123037,0.03257599,118190.0,118180.0,0.16923337]
[1755179123227,0.20179504,118190.0,118180.0,0.16923337]
[1755179123391,0.01557599,118190.0,118180.0,0.16923337]
[1755179123813,0.03257599,118190.0,118180.0,0.17023337]
[1755179124015,0.01557599,118190.0,118180.0,0.43342564]
[1755179124366,0.01557599,118190.0,118180.0,0.43242564]
[1755179124708,0.01557599,118190.0,118180.0,0.77242564]
[1755179124908,0.017,118220.0,118210.0,0.16919042]
[1755179125124,0.017,118220.0,118210.0,0.28092221]
[1755179125125,0.01560437,118220.0,118210.0,0.28092221]
[1755179125331,0.03260437,118220.0,118210.0,0.28092221]